bitfinex-derivatives/quotes_ETHF0:USTF0_20220103
["timestamp","ask_amount","ask_price","bid_price","bid_amount"]
[1641234520070,2.00479,3761.3,3760.5,4.32841664]
[1641234523374,2.00479,3761.3,3760.5,5.65711547]
[1641234523773,2.00479,3761.3,3760.6,1.49793792]
[1641234524575,2.00479,3761.3,3760.7,1.49793792]
[1641234525676,2.00479,3761.3,3760.6,1.49793792]
[1641234526379,2.00479,3761.3,3760.7,1.49793792]
[1641234528679,2.00479,3761.3,3760.8,1.49793792]
[1641234531489,2.00479,3761.3,3760.6,1.49793792]
[1641234533891,1.20027059,3761.7,3760.8,1.32861233]
[1641234534592,2.00479,3761.3,3760.8,1.32861233]
[1641234534791,2.77209,3761.3,3760.8,1.32861233]
[1641234534993,2.77209,3761.3,3761.0,1.49793792]
[1641234535195,0.229991,3761.2,3761.0,1.49793792]
[1641234536496,0.229991,3761.2,3760.5,1.49793792]
[1641234536497,0.51744208,3761.1,3760.5,1.49793792]
[1641234536701,2.00479,3760.6,3760.5,1.49793792]
[1641234537095,2.00479,3760.6,3760.5,2.23341754]
[1641234537495,2.00479,3760.6,3760.5,0.73547962]
[1641234537998,2.234781,3760.6,3760.5,0.73547962]
[1641234539496,2.00479,3760.6,3760.5,0.73547962]
[1641234540097,2.234781,3760.6,3760.5,0.73547962]
[1641234542398,2.234781,3760.6,3760.5,2.23520073]
[1641234545205,2.00479,3760.6,3760.5,2.23520073]
[1641234546107,2.234781,3760.6,3760.5,2.23520073]
[1641234547007,2.234781,3760.6,3760.5,0.73547962]
[1641234550610,2.00479,3760.6,3760.5,2.23459539]
[1641234551514,2.00479,3760.6,3760.5,0.73547962]
[1641234551712,2.234781,3760.6,3760.5,0.73547962]
[1641234552114,2.00479,3760.6,3760.5,0.73547962]
[1641234553515,0.229991,3760.6,3760.5,0.73547962]
[1641234553915,1.19857254,3761.0,3760.5,2.23495022]
[1641234554720,1.19857254,3761.0,3760.5,4.23974022]
[1641234555016,1.19857254,3761.0,3760.8,1.4994706]
[1641234555216,2.00479,3761.3,3760.8,1.4994706]
[1641234555217,1.19857254,3761.2,3760.8,1.4994706]
[1641234556218,1.71753634,3761.2,3760.7,1.4994706]
[1641234556817,1.71753634,3761.2,3760.8,1.4994706]
[1641234558819,1.71753634,3761.2,3760.5,2.74026962]
[1641234558820,1.71753634,3761.2,3760.7,1.4994706]
[1641234559219,1.71753634,3761.2,3760.8,1.4994706]
[1641234559419,0.5189638,3761.2,3760.8,1.4994706]
[1641234561923,1.71753634,3761.2,3760.7,1.4994706]
[1641234562728,1.19857254,3761.1,3760.6,1.4994706]
[1641234563126,1.19857254,3761.1,3760.7,1.30097516]
[1641234564028,1.19857254,3761.1,3760.7,2.80044576]
[1641234566030,1.71753634,3761.2,3760.7,2.80044576]
[1641234566230,1.71753634,3761.2,3760.7,3.54724576]
[1641234566930,0.5189638,3761.0,3760.7,3.54724576]
[1641234567531,1.71753634,3761.2,3760.7,3.54724576]
[1641234567734,0.5189638,3761.2,3760.8,1.4994706]
[1641234569332,1.71753634,3761.2,3760.8,1.4994706]
[1641234570435,0.5189638,3761.2,3760.8,1.4994706]
[1641234573844,1.71753634,3761.2,3760.7,3.54724576]
[1641234575547,1.71753634,3761.2,3760.8,1.4994706]
[1641234577247,0.5189638,3761.2,3761.1,1.4994706]
[1641234577447,0.5189638,3761.2,3761.1,1.6276276]
[1641234578056,1.19857254,3761.5,3761.1,1.6276276]
[1641234582356,1.19857254,3761.4,3761.1,1.6276276]
[1641234582558,0.229991,3761.3,3761.1,1.6276276]
[1641234583160,0.229991,3761.3,3761.1,0.128157]
[1641234583758,0.229991,3761.3,3761.1,1.4994706]
[1641234584261,0.789991,3761.3,3761.1,1.4994706]
[1641234584460,0.789991,3761.3,3760.7,1.30097516]
[1641234584659,2.289991,3761.3,3760.7,1.30097516]
[1641234584960,2.00479,3761.1,3760.7,1.30097516]
[1641234586962,4.00958,3761.1,3760.7,1.30097516]
[1641234587564,1.71763347,3761.0,3760.7,1.30097516]
[1641234587964,0.229991,3760.9,3760.7,1.30097516]
[1641234589670,0.51906093,3760.8,3760.7,1.30097516]
[1641234591071,2.52385093,3760.8,3760.7,1.30097516]
[1641234591269,2.00479,3760.8,3760.7,1.30097516]
[1641234592169,2.52385093,3760.8,3760.7,1.30097516]
[1641234593171,0.51906093,3760.8,3760.7,1.30097516]
[1641234598485,1.71763347,3760.8,3760.7,1.30097516]
[1641234598882,1.71763347,3760.8,3760.5,1.49818312]
[1641234599082,0.229991,3760.7,3760.5,1.49818312]
[1641234599485,0.229991,3760.7,3760.4,1.49818312]
[1641234600182,0.229991,3760.7,3760.5,1.49818312]
[1641234601986,0.53196048,3760.6,3760.4,2.73133654]
[1641234602187,0.229991,3760.5,3760.4,2.73133654]
[1641234602387,0.53196048,3760.6,3760.4,2.73133654]
[1641234603088,0.229991,3760.5,3760.4,2.73133654]
[1641234604691,0.229991,3760.5,3759.9,2.00479]
[1641234604891,0.229991,3760.5,3759.7,2.69541207]
[1641234605092,2.00479,3760.3,3759.7,2.69541207]
[1641234605691,2.00479,3760.3,3759.7,3.41449198]
[1641234606896,0.54471303,3760.2,3759.7,1.46932429]
[1641234607096,0.54471303,3760.2,3759.7,0.71907991]
[1641234609099,2.00479,3760.3,3759.7,0.71907991]
[1641234611299,2.00479,3760.3,3759.7,1.57963691]
[1641234611499,2.00479,3760.3,3759.7,1.45147991]
[1641234613402,2.00479,3760.3,3759.8,0.128157]
[1641234613803,2.00479,3760.3,3759.8,1.45711187]
[1641234614708,2.00479,3760.3,3760.1,1.49697124]
[1641234615305,2.00479,3760.7,3760.1,1.49697124]
[1641234620109,2.00479,3760.7,3760.2,1.49697124]
[1641234621009,2.00479,3760.7,3760.1,1.49697124]
[1641234622314,2.00479,3760.7,3760.2,1.49697124]
[1641234623511,2.00479,3760.7,3760.3,1.49697124]
[1641234623910,2.00479,3760.7,3760.4,1.23921533]
[1641234624111,0.229991,3760.6,3760.4,1.23921533]
[1641234624410,2.00479,3760.7,3760.4,1.23921533]
[1641234624814,31.4723,3761.1,3760.4,1.23921533]
[1641234625013,2.00479,3761.2,3760.4,1.23921533]
[1641234625412,2.00479,3761.2,3760.6,2.00479]
[1641234625714,2.00479,3761.2,3760.7,0.128157]
[1641234629414,1.19857254,3761.7,3760.7,0.128157]
[1641234630218,1.19857254,3761.7,3760.8,1.5]
[1641234630416,1.19857254,3761.7,3761.2,1.32846054]
[1641234631019,2.00479,3761.8,3761.2,1.32846054]
[1641234631517,2.00479,3761.8,3761.3,2.00479]
[1641234640835,2.00479,3761.8,3761.5,1.32835113]
[1641234641034,2.00479,3761.8,3761.5,1.99365113]
[1641234641233,2.00479,3761.8,3761.6,0.128157]
[1641234641636,2.234781,3761.8,3761.6,0.128157]
[1641234641835,2.00479,3761.8,3761.6,0.128157]
[1641234642536,0.229991,3761.7,3761.6,0.128157]
[1641234642735,2.00479,3761.8,3761.6,0.128157]
[1641234643639,0.229991,3761.7,3761.5,1.32835113]
[1641234644139,0.229991,3761.7,3761.3,2.132947]
[1641234644837,2.00479,3761.8,3761.3,2.132947]
[1641234647139,0.54457517,3761.7,3761.3,2.132947]
[1641234647340,1.74314771,3761.7,3761.4,1.49697124]
[1641234648343,0.229991,3761.6,3761.4,1.49697124]
[1641234648542,1.003091,3761.6,3761.4,1.49697124]
[1641234649745,1.74314771,3761.5,3761.3,2.00479]
[1641234649944,0.229991,3761.4,3761.3,2.00479]
[1641234650647,1.74314771,3761.5,3761.3,2.00479]
[1641234650846,0.54457517,3761.4,3761.3,3.50176124]
[1641234651647,0.229991,3761.5,3761.3,3.50176124]
[1641234652648,2.00479,3761.8,3761.4,0.128157]
[1641234653349,1.19857254,3762.4,3761.4,0.128157]
[1641234653550,1.19857254,3762.4,3761.6,1.32830878]
[1641234653749,1.19857254,3762.6,3761.6,1.32830878]
[1641234655049,2.00479,3762.7,3761.6,1.32830878]
[1641234656049,2.00479,3762.7,3761.7,2.00479]
[1641234656250,2.00479,3762.7,3761.7,2.72589]
[1641234657952,2.00479,3762.7,3761.7,2.00479]
[1641234658554,1.5,3762.0,3761.2,0.81262298]
[1641234658754,11.43,3762.4,3761.2,0.81262298]
[1641234658954,2.58429,3762.5,3761.2,0.81262298]
[1641234659956,2.00479,3761.7,3761.2,0.81262298]
[1641234660156,2.00479,3761.7,3761.3,0.128157]
[1641234669569,2.00479,3761.7,3761.2,0.81262298]
[1641234671872,0.54420314,3761.6,3761.4,1.49697124]
[1641234673776,1.49715052,3762.2,3761.5,1.5]
[1641234674078,1.19932817,3761.9,3761.8,1.5]
[1641234674475,1.19932817,3761.9,3761.7,1.3281747]
[1641234674677,1.19932817,3761.9,3761.8,1.5]
[1641234674875,1.19932817,3761.9,3761.7,1.3281747]
[1641234675076,5.20890817,3762.5,3761.7,1.3281747]
[1641234675676,5.20890817,3762.5,3761.7,2.8281747]
[1641234676678,1.74383811,3762.4,3762.1,1.49963004]
[1641234676877,0.229991,3762.3,3762.2,0.69825553]
[1641234677379,1.74383811,3762.4,3762.2,0.69825553]
[1641234677577,1.74383811,3762.4,3762.2,2.19788557]
[1641234677780,0.229991,3762.3,3762.2,2.19788557]
[1641234680080,0.77450094,3762.3,3761.8,1.49963004]
[1641234681183,0.77450094,3762.3,3761.9,1.14567422]
[1641234681379,1.74448154,3762.2,3761.9,3.22470426]
[1641234681978,2.00479,3762.0,3761.9,3.22470426]
[1641234682379,2.00479,3762.0,3761.9,1.72507422]
[1641234686286,2.00479,3762.5,3761.9,1.72507422]
[1641234686485,2.00479,3762.5,3762.1,1.32804418]
[1641234687086,2.00479,3762.5,3761.9,1.72507422]
[1641234687285,2.00479,3762.5,3762.1,1.32804418]
[1641234692793,2.00479,3762.5,3761.9,1.14567422]
[1641234692992,2.80119,3762.5,3761.9,1.14567422]
[1641234696602,0.7964,3762.5,3761.9,1.14567422]
[1641234696999,2.00479,3762.9,3761.9,1.14567422]
[1641234697202,30.1867,3763.2,3762.0,1.5]
[1641234698100,30.1867,3763.2,3762.6,2.00479]
[1641234698400,34.8028616,3763.4,3762.6,2.132947]
[1641234698600,3.2047616,3763.4,3762.6,2.132947]
[1641234699004,2.00479,3763.4,3762.7,0.82850452]
[1641234710519,2.00479,3763.4,3762.7,0.95666152]
[1641234712718,2.00479381,3763.3,3762.7,2.44947133]
[1641234712919,1.19452563,3763.0,3762.7,2.44947133]
[1641234713618,0.229991,3762.9,3762.7,2.32131433]
[1641234714219,1.69772563,3763.0,3762.7,2.32131433]
[1641234715223,0.51163678,3762.8,3762.7,0.82850452]
[1641234715824,2.01163678,3762.8,3762.7,0.82850452]
[1641234716021,2.01163678,3762.8,3761.9,2.70881337]
[1641234716221,2.00479,3762.5,3761.9,2.70881337]
[1641234716421,3.50479,3762.5,3761.9,2.70881337]
[1641234717023,3.50479,3762.5,3762.0,1.00686727]
[1641234717223,2.00479,3762.5,3762.0,1.00686727]
[1641234717922,1.19452563,3762.2,3762.0,1.00686727]
[1641234719022,1.19452563,3762.3,3762.0,1.00686727]
[1641234719723,0.229991,3762.2,3762.0,1.00686727]
[1641234722225,0.51163678,3762.1,3762.0,1.00686727]
[1641234727537,0.51163678,3762.4,3762.0,1.00686727]
[1641234728636,2.00479,3762.5,3762.0,1.00686727]
[1641234730638,0.52317466,3762.4,3762.0,1.00686727]
[1641234731637,0.7871,3762.4,3762.0,1.00686727]
[1641234734444,0.52308759,3762.3,3762.0,1.00686727]
[1641234734845,1.19452563,3762.5,3762.0,1.00686727]
[1641234735145,4.69931563,3762.7,3762.0,1.00686727]
[1641234736047,0.52312494,3762.6,3762.0,1.00686727]
[1641234736246,0.52312494,3762.6,3762.1,2.00479]
[1641234738855,3.19931563,3762.7,3762.1,2.00479]
[1641234739056,2.00479,3762.7,3762.1,3.50256936]
[1641234739263,1.19452563,3762.9,3762.1,4.03796936]
[1641234739659,1.19452563,3762.9,3762.2,1.3280089]
[1641234740157,1.19452563,3762.9,3762.1,4.03796936]
[1641234741161,0.52338163,3762.6,3762.1,2.54019]
[1641234741459,0.52338163,3762.6,3762.0,2.50464663]
[1641234742060,1.19452563,3763.2,3762.3,1.49777936]
[1641234742260,1.19452563,3763.2,3762.6,2.00479]
[1641234742660,1.19452563,3763.2,3762.7,0.7651201]
[1641234743262,1.71790726,3763.2,3762.7,0.7651201]
[1641234743462,1.19452563,3763.0,3762.8,0.128157]
[1641234743662,0.229991,3762.9,3762.8,0.128157]
[1641234743861,1.19452563,3763.0,3762.8,0.128157]
[1641234744461,1.19452563,3763.0,3762.7,0.7651201]
[1641234744662,0.229991,3762.9,3762.7,0.7651201]
[1641234744863,0.75337263,3762.9,3762.7,0.7651201]
[1641234745061,0.52338163,3762.9,3762.7,0.7651201]
[1641234746163,1.19452563,3763.1,3762.7,0.7651201]
[1641234748965,0.52338163,3763.3,3762.7,0.7651201]
[1641234748966,1.5,3763.2,3762.7,0.7651201]
[1641234749567,0.52338163,3763.3,3762.7,0.7651201]
[1641234749868,0.52338163,3763.1,3762.7,0.7651201]
[1641234750067,2.32470726,3763.1,3762.7,0.7651201]
[1641234751069,1.5,3762.9,3762.7,0.7651201]
[1641234751271,1.729991,3762.8,3762.7,0.7651201]
[1641234751471,0.229991,3762.8,3762.7,0.7651201]
[1641234752270,0.75337263,3762.8,3762.7,0.7651201]
[1641234752474,3.44789826,3762.8,3761.9,1.49777936]
[1641234752669,1.5,3762.0,3761.1,2.98561961]
[1641234752874,1.5,3761.9,3761.1,2.98561961]
[1641234753472,1.5,3761.9,3761.2,0.72226778]
[1641234753870,0.5084,3762.0,3761.2,0.72226778]
[1641234754272,2.00479,3761.7,3761.2,0.72226778]
[1641234765095,2.00479,3761.7,3761.6,1.49988532]
[1641234765296,2.234781,3761.7,3761.6,1.49988532]
[1641234766298,2.00479,3761.7,3761.6,1.49988532]
[1641234766699,2.56257532,3761.7,3761.5,1.49988532]
[1641234768201,2.00479,3761.7,3761.5,1.49988532]
[1641234768401,2.00479,3761.7,3761.2,0.72226778]
[1641234768402,2.00479,3761.7,3761.3,1.49988532]
[1641234769401,2.00479,3762.1,3761.3,1.49988532]
[1641234769604,2.00479,3762.1,3761.6,1.49988532]
[1641234770406,2.00479,3762.1,3761.5,1.49988532]
[1641234771911,2.00479,3762.1,3761.4,2.00479]
[1641234771912,2.00479,3762.1,3761.6,1.49988532]
[1641234775019,1.5,3762.0,3761.4,2.00479]
[1641234776020,1.5,3761.8,3761.4,2.00479]
[1641234776822,1.5,3762.0,3761.4,2.00479]
[1641234777221,1.5,3761.8,3761.4,2.00479]
[1641234777624,4.15279,3762.1,3761.4,2.00479]
[1641234777824,3.50479,3762.1,3761.4,2.00479]
[1641234778022,2.00479,3762.1,3761.4,2.00479]
[1641234779925,0.53220015,3762.0,3761.4,2.00479]
[1641234781526,2.00479,3762.1,3761.4,2.00479]
[1641234785232,1.5,3762.0,3761.4,2.00479]
[1641234785635,2.00479,3762.1,3761.4,2.00479]
[1641234786135,2.00479,3762.1,3761.5,0.128157]
[1641234786735,0.55793891,3762.0,3761.5,0.128157]
[1641234788237,0.55793891,3762.0,3761.8,1.49988532]
[1641234788438,0.55793891,3762.0,3761.9,1.24309697]
[1641234789740,0.78792991,3762.0,3761.9,1.24309697]
[1641234790343,0.78792991,3762.0,3761.9,2.74298229]
[1641234791944,0.229991,3762.0,3761.9,1.24309697]
[1641234792849,2.00479,3762.1,3761.9,1.24309697]
[1641234793144,0.229991,3762.0,3761.9,1.24309697]
[1641234794649,1.59905474,3762.0,3761.9,1.24309697]
[1641234795448,1.36906374,3762.0,3761.9,1.24309697]
[1641234795647,1.59905474,3762.0,3761.9,1.24309697]
[1641234800753,3.09905474,3762.0,3761.6,1.4998381]
[1641234800952,1.5,3761.7,3760.8,2.98561961]
[1641234801152,1.5,3761.5,3760.8,2.98561961]
[1641234801654,1.5,3761.5,3760.9,0.86843464]
[1641234802453,2.00479,3761.0,3760.9,0.86843464]
[1641234802653,2.67269,3761.0,3760.9,0.86843464]
[1641234803454,0.6679,3761.0,3760.9,0.86843464]
[1641234803854,1.19037872,3761.8,3760.9,0.99659164]
[1641234804055,1.19037872,3761.9,3760.9,0.99659164]
[1641234804554,2.00479,3761.0,3760.9,0.99659164]
[1641234805954,2.00479,3761.4,3760.9,0.99659164]
[1641234806554,2.00479,3761.4,3760.9,0.86843464]
[1641234811063,2.00479,3761.4,3761.0,1.49801624]
[1641234812062,2.00479,3761.4,3761.1,1.49801624]
[1641234812266,0.229991,3761.3,3761.1,1.49801624]
[1641234812462,0.924491,3761.3,3761.1,1.49801624]
[1641234813262,2.424491,3761.3,3761.1,1.49801624]
[1641234814061,2.424491,3761.3,3760.9,0.86843464]
[1641234815761,0.924491,3761.3,3760.9,0.86843464]
[1641234816162,0.55681393,3761.2,3760.9,0.86843464]
[1641234816662,0.229991,3761.1,3760.9,0.86843464]
[1641234820265,30.57268405,3761.0,3760.9,0.86843464]
[1641234820466,32.57747405,3761.0,3760.9,3.464e-05]
[1641234820767,44.00747405,3761.0,3760.3,1.22709634]
[1641234820967,1.5,3760.4,3760.1,2.62084944]
[1641234821165,1.5,3760.2,3759.6,3.73202452]
[1641234821571,1.5,3760.2,3759.7,2.62121269]
[1641234822567,2.00479,3760.1,3759.7,2.62121269]
[1641234823368,1.5,3760.0,3759.6,0.95709848]
[1641234823769,2.00479,3760.1,3759.6,0.95709848]
[1641234827074,0.55817453,3760.0,3759.6,0.95709848]
[1641234827275,1.5,3759.9,3759.6,0.95709848]
[1641234827477,0.229991,3759.8,3759.6,0.95709848]
[1641234830681,0.229991,3759.8,3759.6,2.45768257]
[1641234831685,2.00479,3760.1,3759.6,0.95709848]
[1641234836488,13.43479,3760.1,3759.6,0.95709848]
[1641234837389,1.5,3760.0,3759.6,0.95709848]
[1641234837590,1.5,3760.0,3758.9,30.6787]
[1641234837989,1.5,3759.8,3758.9,30.6787]
[1641234838590,2.00479,3759.2,3759.0,0.95798323]
[1641234838791,2.66619,3759.2,3759.0,0.95798323]
[1641234839590,0.229991,3759.1,3759.0,0.95798323]
[1641234839791,2.66619,3759.2,3759.0,0.95798323]
[1641234840392,0.229991,3759.1,3759.0,0.95798323]
[1641234845401,2.66619,3759.2,3759.0,0.95798323]
[1641234846599,2.00479,3759.2,3759.0,0.95798323]
[1641234847700,2.234781,3759.2,3759.0,0.95798323]
[1641234847900,2.00479,3759.2,3759.0,0.95798323]
[1641234850805,0.229991,3759.1,3759.0,0.95798323]
[1641234851004,2.00479,3759.2,3759.0,0.95798323]
[1641234852604,2.234781,3759.2,3759.0,0.95798323]
[1641234853406,2.00479,3759.2,3759.0,0.95798323]
[1641234854107,2.234781,3759.2,3759.0,0.95798323]
[1641234855612,2.00479,3759.2,3759.0,0.95798323]
[1641234857516,2.234781,3759.2,3759.0,0.95798323]
[1641234858015,2.00479,3759.2,3759.0,0.95798323]
[1641234858416,2.234781,3759.2,3759.0,0.95798323]
[1641234859116,2.00479,3759.2,3759.0,0.95798323]
[1641234860319,0.229991,3759.1,3759.0,0.95798323]
[1641234860919,2.00479,3759.2,3759.0,0.95798323]
[1641234862119,2.234781,3759.2,3759.0,0.95798323]
[1641234862822,2.00479,3759.2,3759.0,0.95798323]
[1641234864522,0.229991,3759.1,3759.0,0.95798323]
[1641234865020,2.00479,3759.2,3759.0,0.95798323]
[1641234865921,2.234781,3759.2,3759.0,0.95798323]
[1641234866120,2.00479,3759.2,3759.0,0.95798323]
[1641234867925,2.234781,3759.2,3759.0,0.95798323]
[1641234868125,2.00479,3759.2,3759.0,0.95798323]
[1641234869131,0.229991,3759.1,3759.0,0.95798323]
[1641234869729,2.00479,3759.2,3759.0,0.95798323]
[1641234874937,2.00479,3759.2,3759.0,2.45798323]
[1641234875334,2.00479,3760.1,3759.0,3.10118323]
[1641234875536,2.00479,3760.1,3759.7,1.5]
[1641234875734,2.00479,3760.1,3759.8,0.128157]
[1641234875935,2.00479,3760.1,3759.8,0.784957]
[1641234876736,1.19037872,3760.4,3759.9,0.93408166]
[1641234877537,1.19037872,3760.4,3759.9,2.43408166]
[1641234878139,2.00479,3760.5,3760.1,1.49919527]
[1641234879137,2.00479,3760.5,3760.2,1.49919527]
[1641234880437,0.229991,3760.4,3760.2,1.49919527]
[1641234880937,0.229991,3760.4,3760.1,1.49919527]
[1641234882438,0.229991,3760.4,3759.9,2.43327693]
[1641234883939,0.56266707,3760.3,3759.9,0.93408166]
[1641234888447,0.56266707,3760.3,3759.9,2.43327693]
[1641234889745,0.56266707,3760.4,3759.9,2.43327693]
[1641234889946,0.56266707,3760.4,3759.9,0.93408166]
[1641234889947,1.19037872,3760.3,3759.9,0.93408166]
[1641234891445,2.69037872,3760.3,3759.9,0.93408166]
[1641234891645,1.19037872,3760.3,3759.9,0.93408166]
[1641234891846,1.19037872,3760.3,3759.9,0.64528393]
[1641234892348,1.19037872,3760.1,3759.9,0.64528393]
[1641234892549,0.229991,3760.0,3759.9,0.64528393]
[1641234893149,1.42036972,3760.0,3759.9,0.64528393]
[1641234894950,1.98303679,3760.0,3759.9,0.64528393]
[1641234895752,0.79265807,3760.0,3759.9,0.64528393]
[1641234899956,0.56266707,3760.0,3759.9,0.64528393]
[1641234900356,0.79265807,3760.0,3759.9,0.64528393]
[1641234902258,0.229991,3760.0,3759.9,0.64528393]
[1641234908563,1.19037872,3760.3,3759.9,0.64528393]
[1641234911869,1.19037872,3760.3,3760.0,0.128157]
[1641234913872,0.56269165,3760.4,3760.0,0.128157]
[1641234915173,0.56269165,3760.4,3760.0,1.62735227]
[1641234917484,0.56269165,3760.4,3760.0,0.128157]
[1641234917784,1.75307037,3760.4,3760.0,0.128157]
[1641234917985,1.75307037,3760.4,3759.9,0.64528393]
[1641234920386,1.75307037,3760.4,3760.0,0.128157]
[1641234920788,1.75307037,3760.4,3759.9,0.64528393]
[1641234922290,1.19037872,3760.3,3760.0,1.49919527]
[1641234922490,1.19037872,3760.3,3760.1,0.128157]
[1641234926997,0.229991,3760.2,3760.1,0.128157]
[1641234927598,1.19037872,3760.3,3760.1,0.128157]
[1641234928497,0.56269165,3760.2,3760.1,0.128157]
[1641234929198,0.79268265,3760.2,3760.1,0.128157]
[1641234929399,0.56269165,3760.2,3760.1,0.128157]
[1641234929999,0.56269165,3760.2,3760.0,1.49919527]
[1641234930201,0.229991,3760.2,3760.0,1.49919527]
[1641234930402,1.19037872,3760.3,3760.0,1.49919527]
[1641234931005,0.56269165,3760.1,3760.0,1.49919527]
[1641234932604,1.19037872,3760.3,3760.0,1.49919527]
[1641234933604,1.19037872,3760.3,3759.9,0.64528393]
[1641234934008,0.56269165,3760.4,3759.9,0.64528393]
[1641234935005,1.19037872,3760.7,3759.9,2.1444792]
[1641234935608,3.19516872,3760.7,3759.9,2.1444792]
[1641234936707,1.19037872,3760.4,3759.9,0.64528393]
[1641234937906,1.19037872,3760.5,3759.9,0.64528393]
[1641234943511,0.19037872,3760.5,3760.2,2.00479]
[1641234943713,1.4851445,3760.8,3760.3,1.5]
[1641234943911,1.4851445,3760.8,3760.5,1.5]
[1641234944112,1.4851445,3760.8,3760.6,0.128157]
[1641234944511,2.23973555,3761.4,3760.7,0.6982693]
[1641234944914,1.49316891,3760.9,3760.7,0.6982693]
[1641234945511,1.49316891,3760.9,3760.8,2.00479]
[1641234945712,1.79178844,3761.2,3760.8,2.00479]
[1641234946111,1.79178844,3761.8,3760.8,2.00479]
[1641234947314,3.79657844,3761.9,3760.8,2.00479]
[1641234948616,2.00479,3761.9,3760.8,2.00479]
[1641234949817,3.50479,3761.9,3760.8,2.00479]
[1641234950219,14.93479,3761.9,3760.8,2.00479]
[1641234951118,1.79178844,3761.7,3760.8,2.00479]
[1641234951320,2.37658844,3761.7,3760.8,2.00479]
[1641234951520,1.5,3761.4,3760.8,2.00479]
[1641234951718,1.5,3761.6,3760.8,2.00479]
[1641234952320,14.72178844,3761.6,3760.8,2.00479]
[1641234952820,1.5,3761.4,3760.8,2.00479]
[1641234953020,14.72178844,3761.6,3760.8,2.00479]
[1641234953422,1.79178844,3761.5,3760.8,2.00479]
[1641234954523,1.32904318,3761.4,3760.8,2.00479]
[1641234954723,1.48946029,3761.2,3760.8,2.00479]
[1641234957729,1.48946029,3761.3,3760.8,2.00479]
[1641234960534,1.19333977,3760.9,3760.8,2.00479]
[1641234960732,2.23783077,3760.9,3760.8,2.00479]
[1641234960932,24.40151832,3760.9,3760.7,0.6982693]
[1641234961132,25.90151832,3760.9,3760.2,2.00479]
[1641234961333,1.5,3760.3,3759.5,5.429]
[1641234961734,2.00479,3760.1,3759.5,5.429]
[1641234961933,2.58419,3760.1,3759.6,1.27667569]
[1641234963437,3.77675171,3760.1,3759.6,1.27667569]
[1641234965239,1.75528679,3760.0,3759.6,1.27667569]
[1641234966140,0.75528679,3760.0,3759.6,1.27667569]
[1641234967042,0.75528679,3760.2,3759.6,1.27667569]
[1641234967642,1.79178844,3761.0,3759.6,1.27667569]
[1641234967842,2.00479,3760.9,3760.1,2.00479]
[1641234968041,2.00479,3760.9,3760.2,1.13577818]
[1641234968442,1.79178844,3761.0,3760.3,0.128157]
[1641234969842,1.79178844,3761.0,3760.8,2.00479]
[1641234970042,0.229991,3760.9,3760.8,2.00479]
[1641234970242,1.79178844,3761.3,3760.8,2.00479]
[1641234970847,1.79178844,3761.3,3760.9,1.5]
[1641234971044,1.79178844,3761.3,3760.9,2.2178]
[1641234971646,0.79178844,3761.3,3760.9,2.2178]
[1641234971844,1.4946363,3761.4,3760.9,2.2178]
[1641234972044,1.4946363,3761.4,3761.3,2.00479]
[1641234972446,1.4946363,3761.4,3761.3,2.132947]
[1641234972644,0.4946363,3761.4,3761.3,2.132947]
[1641234972847,0.4946363,3761.7,3761.3,2.132947]
[1641234974146,2.00479,3762.1,3761.3,2.132947]
[1641234974951,2.00479,3762.1,3761.3,3.632947]
[1641234975348,2.00479,3762.1,3761.3,2.132947]
[1641234976054,2.00479,3762.1,3761.3,2.00479]
[1641234976251,1.32884008,3762.0,3761.3,2.00479]
[1641234976452,0.7731,3762.0,3761.3,2.00479]
[1641234977050,1.3288807,3761.9,3761.3,2.00479]
[1641234977251,0.7731,3762.0,3761.3,2.00479]
[1641234977953,1.3288807,3761.9,3761.3,2.00479]
[1641234978351,0.7731,3762.0,3761.3,2.00479]
[1641234979353,4.24452555,3762.1,3761.4,0.128157]
[1641234979752,4.24452555,3762.1,3761.5,0.68673051]
[1641234979953,2.00479,3762.1,3761.5,0.68673051]
[1641234982459,3.49896942,3762.1,3761.5,0.68673051]
[1641234983460,1.49417942,3762.1,3761.5,0.68673051]
[1641234986361,1.49417942,3762.1,3761.5,2.18673051]
[1641234986564,1.49417942,3762.1,3761.5,0.68673051]
[1641234986762,0.5624998,3762.1,3761.5,2.18673051]
[1641234987567,0.5624998,3762.1,3761.5,0.68673051]
[1641234991273,1.49417942,3762.0,3761.5,0.68673051]
[1641234991872,2.08497942,3762.0,3761.5,0.68673051]
[1641234992474,1.49417942,3761.9,3761.5,0.68673051]
[1641234992674,1.49417942,3761.9,3761.3,2.00479]
[1641234993073,1.49417942,3761.9,3761.3,2.132947]
[1641234993376,1.49417942,3761.8,3761.3,2.132947]
[1641234994376,1.49417942,3761.9,3761.3,2.132947]
[1641234994675,1.49417942,3761.9,3761.3,2.642147]
[1641234995075,1.49417942,3761.9,3761.3,2.51399]
[1641234995976,1.49417942,3761.9,3761.3,2.642147]
[1641234996176,1.19588336,3761.6,3761.3,2.642147]
[1641234997980,0.229991,3761.5,3761.3,2.00479]
[1641234999681,0.5624998,3761.4,3761.3,2.00479]
[1641235001381,0.7924908,3761.4,3761.3,2.00479]
[1641235001680,0.5624998,3761.4,3761.3,2.00479]
[1641235002180,0.5624998,3761.4,3761.3,2.74463412]
[1641235003784,1.19588336,3761.5,3761.3,2.74463412]
[1641235004785,0.229991,3761.4,3761.3,0.73984412]
[1641235004987,2.69588336,3761.6,3761.3,0.6972439]
[1641235005381,1.19588336,3761.6,3761.3,0.6972439]
[1641235005582,1.32908558,3761.4,3760.7,1.49660988]
[1641235005784,1.19588336,3761.6,3760.7,1.49660988]
[1641235005982,1.5,3761.6,3760.7,1.49660988]
[1641235006386,2.00479,3761.3,3760.7,0.98362971]
[1641235006586,1.5,3761.2,3760.7,0.98362971]
[1641235006784,2.76349,3761.3,3760.7,0.98362971]
[1641235007187,1.5,3761.2,3760.7,0.98362971]
[1641235007888,0.5624998,3761.1,3760.7,0.98362971]
[1641235008189,1.19713804,3761.0,3760.7,0.98362971]
[1641235008990,0.229991,3760.9,3760.7,0.98362971]
[1641235010392,0.5624998,3760.8,3760.7,0.98362971]
[1641235011295,1.75963784,3760.8,3760.7,0.98362971]
[1641235012993,0.5624998,3760.8,3760.7,0.98362971]
[1641235014594,1.19713804,3761.0,3760.7,0.98362971]
[1641235014801,0.229991,3760.9,3760.7,0.98362971]
[1641235014999,1.19713804,3761.0,3760.7,0.98362971]
[1641235016901,0.229991,3760.9,3760.7,0.98362971]